{"text_format":"2","workbook":"xlsx","n_sheets":4,"sheets":["Katelaskelmat","Rahoituslaskelma","Tulossuunnitelma","Ekstrataulukko Laskutustarve"],"not_rendered":{"charts":0,"images":0,"macros":0,"external_links":0,"defined_names":0,"comments":2,"pivot_tables":0},"unopened":[],"bounds":{"document_bytes":16777216,"sheet_cells":100000,"run_cost":"one","rows_first":2000,"rows_last":500,"rows_between":2000,"halvings":0,"cell_chars":16384,"cell_head_chars":4096},"cells_cut":0,"cells_raw":0,"read":"whole","date_system":"1900"}

{"sheet":"Katelaskelmat","index":0,"n_rows":77,"n_cols":6,"rows_kept":77,"cut":false,"hidden":false,"merged":[]}
["Yritystoiminnan suunnittelulaskelmat",null,"päivitetty 4.9.2023"]
[" -Katelaskelmat"]
[]
["TUOTOT"]
["Myyntitavoitteiden määrittäminen"]
["Tarkastele myyntitavoitteita parhaiten sopivasta näkökulmasta: tuotteittain, palveluittain, asiakas- tai tuoteryhmittäin"]
["Käytä yksikköhintana esim. tuntihintaa, keskimääräistä urakkahintaa tai keskiostoksen suuruutta"]
[]
[null,"Tuote / Palvelu 1 ","Tuote / Palvelu 2 ","Tuote / Palvelu 3 ","Tuote / Palvelu 4","Yhteensä"]
["a´-hinta",0,0,0,0]
["kpl / kk",0,0,0,0]
["Liikevaihto / kk",{"$f":"B10*B11","v":0},{"$f":"C10*C11","v":0},0,0,{"$f":"SUM(B12:E12)","v":0}]
["Kuukausien lukumäärä, johon liikevaihtotavoite lasketaan",0,0,0,0]
["Liikevaihto / vuosi",{"$f":"B12*B13","v":0},{"$f":"C12*C13","v":0},0,0,{"$f":"SUM(B14:E14)","v":0}]
[]
[]
["MUUTTUVAT KUSTANNUKSET"]
[]
[null,"Tuote / Palvelu 1","Tuote / Palvelu 2","Tuote / Palvelu 3","Tuote / Palvelu 4","Yhteensä"]
["Raaka-aineet, €/kpl",0,0,0,0]
["Ulkopuolisilla teetettävä työ, €/kpl",0,0,0,0]
["Pakkaustarvikkeet, €/kpl",0,0,0,0]
["Kuljetusrahdit, €/kpl",0,0,0,0]
["Muut muuttuvat kulut, €/kpl",0,0,0,0]
["Yhteensä €/kpl",{"$f":"SUM(B20:B24)","v":0},{"$f":"SUM(C20:C24)","v":0},0,0]
["Muuttuvat kustannukset €/kk",{"$f":"B11*B25","v":0},{"$f":"C11*C25","v":0},{"$f":"D11*D25","v":0},{"$f":"E11*E25","v":0},{"$f":"SUM(B26:E26)","v":0}]
["Muuttuvat kustannukset €/v",{"$f":"B26*B13","v":0},{"$f":"C26*C13","v":0},{"$f":"D26*D13","v":0},{"$f":"E26*E13","v":0},{"$f":"SUM(B27:E27)","v":0}]
[]
[]
["MYYNTIKATE",{"$nulls":4},{"$f":"F14-F27","v":0}]
[{"$nulls":5},{"$f":"F30/F14","v":{"$error":"#DIV/0!"}}]
[]
["KIINTEÄT KUSTANNUKSET"]
[]
[null,null,null,"€/kk","kuukausien lukumäärä","€/v"]
["Yrittäjän omat kulut","Yrittäjän palkka /yksityisotto",null,0,0,{"$f":"D36*E36","v":0}]
[null,"YEL",null,0,0,{"$f":"D37*E37","v":0}]
["Työntekijöistä aiheutuvat kulut","Palkat",null,0,0,0]
[null,"Palkan sivukulut (n. 50-70% palkasta)",null,0,0,0]
["Toimitila- ja kiinteistökulut","Vuokrat/vastikkeet",null,0,0,0]
[null,"Sähkö","     ",0,0,0]
[null,"Vesi","     ",0,0,0]
[null,"Korjaukset","     ",0,0,0]
[null,"Puhtaanapito","     ",0,0,0]
[null,"Muut toimitilakulut","     ",0,0,0]
["ICT, kone- ja kalustokulut","Ohjelmistot, päivitykset ja ylläpito ",null,0,0,0]
[null,"Vuokrat ja leasing maksut ","     ",0,0,0]
[null,"Huolto ja korjaus ",null,0,0,0]
[null,"Muut ICT, kone- ja kalustokulut","     ",0,0,0]
["Ajoneuvokulut","Polttoaine",null,0,0,0]
[null,"Korjaukset & huollot","     ",0,0,0]
[null,"Vakuutukset","     ",0,0,0]
[null,"Muut ajoneuvokulut","     ",0,0,0]
["Matkakulut","Päivärahat, km-korvaukset",null,0,0,0]
[null,"Liput, majoitukset","     ",0,0,0]
[null,"Muut matkakulut ","     ",0,0,0]
["Hallintopalvelut","Kirjanpito",null,0,0,0]
[null,"Tilintarkastus","     ",0,0,0]
[null,"Muut hallintopalvelut ","     ",0,0,0]
["Hallintokulut","Puhelin",null,0,0,0]
[null,"Datasiirtokulut ","     ",0,0,0]
[null,"Toimistotarvikkeet","     ",0,0,0]
[null,"Vastuuvakuutukset ","     ",0,0,0]
[null,"Muut hallintokulut ","     ",0,0,0]
["Muut kulut","Markkinointi- ja myyntikulut",null,0,0,0]
[null,"Edustuskulut",null,0,0,0]
[null,"Koulutus- ja kehityskulut",null,0,0,0]
["Kiinteät kustannukset yhteensä €/v",{"$nulls":4},{"$f":"SUM(F36:F67)","v":0}]
[]
["KÄYTTÖKATE",{"$nulls":4},{"$f":"F30-F68","v":0}]
[{"$nulls":5},{"$f":"F70/F14","v":{"$error":"#DIV/0!"}}]
[]
["Poistot",{"$nulls":4},0]
[]
["Korot",{"$nulls":4},0]
[]
["TULOS",{"$nulls":4},{"$f":"F70-F73-F75","v":0}]

{"sheet":"Rahoituslaskelma","index":1,"n_rows":53,"n_cols":3,"rows_kept":53,"cut":false,"hidden":false,"merged":[]}
["Yritystoiminnan suunnittelulaskelmat"]
[" -Rahoituslaskelma"]
[]
["RAHAN TARVE"]
["Rahan käyttökohde"]
[]
["Investoinnit","Asian tarkempi kuvaus","Kustannus /€"]
["Toimitilat (tontti, rakennukset, osakkeet, korjaukset)"]
["Koneet ja laitteet"]
["Asennukset"]
["Kalusteet"]
["Auto"]
["Perustamiskustannukset"]
["Muut"]
["Investoinnit yhteensä",null,{"$f":"SUM(C8:C14)","v":0}]
[]
["Käyttöpääoma","Asian tarkempi kuvaus","Kustannus /€"]
["Kiinteät kulut  (yleensä 30% yhteissummasta)"]
["Korot"]
["Lainojen lyhennykset"]
["Muut"]
["Käyttöpääoma yhteensä",null,{"$f":"SUM(C18:C21)","v":0}]
[]
["Vaihto- ja rahoitusomaisuus","Asian tarkempi kuvaus","Kustannus /€"]
["Alkuvarasto"]
["Käteisvarat"]
["Kustannusylitysvaraus (15-30%)"]
["Vaihto- ja rahoitusomaisuus yhteensä",null,{"$f":"SUM(C25:C27)","v":0}]
[]
["RAHAN TARVE yhteensä",null,{"$f":"C15+C22+C28","v":0}]
[]
[]
["RAHAN LÄHTEET"]
[]
["Oma pääoma","Asian tarkempi kuvaus","Kustannus /€"]
["Omat sijoitukset rahana (Tmi, Ay, Ky)"]
["Osakepääoma (Oy)"]
["Tulorahoitus laskenta-ajalta"]
["Muut"]
["Oma pääoma yhteensä",null,{"$f":"SUM(C36:C39)","v":0}]
[]
["Vieras pääoma","Asian tarkempi kuvaus","Kustannus /€"]
["Lainat pankeilta ja rahoituslaitoksilta"]
["Lainat tavarantoimittajilta"]
["Avustukset ja tuet"]
["Muut"]
["Vieras pääoma yhteensä",null,{"$f":"SUM(C43:C46)","v":0}]
[]
["RAHAN LÄHTEET yhteensä",null,{"$f":"C40+C47","v":0}]
[]
[]
["Omavaraisuusaste",null,{"$f":"C40/(C40+C47)","v":{"$error":"#DIV/0!"}}]
["  = oman pääoman suhde koko pääomaan"]

{"sheet":"Tulossuunnitelma","index":2,"n_rows":32,"n_cols":4,"rows_kept":32,"cut":false,"hidden":false,"merged":[]}
["Yritystoiminnan suunnittelulaskelmat"]
[" -Tulossuunnitelma"]
[]
["TULOSSUUNNITELMA"]
[null,"Toimiva yrittäjä: Viimeisin tilikausi","Toimiva yrittäjä: Nykyinen tilikausi","Toimiva yrittäjä: Seuraava tilikausi"]
[null,"Aloittava yrittäjä: 1. Suunnitelmavuosi ","Aloittava yrittäjä: 2.Suunnitelmavuosi","Aloittava yrittäjä: 3. Suunnitelmavuosi "]
[]
["Liikevaihto",0,{"$f":"B8*1.05","v":0},{"$f":"1.07*C8","v":0}]
["Liiketoiminnan muut tuotot",0,0,0]
["LIIKETOIMINNAN TUOTOT YHTEENSÄ",{"$f":"B8+B9","v":0},{"$f":"C8+C9","v":0},{"$f":"SUM(D8:D9)","v":0}]
["Aine- ja tarvikekäyttö",0,{"$f":"1.05*B11","v":0},0]
["Ulkopuoliset palvelut",0,0,0]
["Henkilöstökulut",0,0,0]
["Liiketoiminnan muut kulut",0,0,0]
["Valmistevaraston lisäys/vähennys",0,0,0]
["LIIKETOIMINNAN KUSTANNUKSET YHTEENSÄ",{"$f":"SUM(B11:B15)","v":0},{"$f":"SUM(C11:C15)","v":0},0]
["KÄYTTÖKATE",{"$f":"B10-B16","v":0},{"$f":"C10-C16","v":0},0]
["Käyttökate %",{"$f":"B17/B10","v":{"$error":"#DIV/0!"}},{"$f":"C17/C10","v":{"$error":"#DIV/0!"}},{"$error":"#DIV/0!"}]
[]
["Suunnitelman mukaiset poistot",0,0,0]
["LIIKETULOS",{"$f":"B17-B20","v":0},{"$f":"C17-C20","v":0},0]
["Liiketulos %",{"$f":"B21/B10","v":{"$error":"#DIV/0!"}},{"$f":"C21/C10","v":{"$error":"#DIV/0!"}},{"$error":"#DIV/0!"}]
[]
[" Tuotot osuuksista ja muista sijoituksista",0,0]
["Muut korko- ja rahoitustuotot",0,0,0]
["Korkokulut ja muut rahoituskulut",0,0,0]
["Välittömät verot",{"$f":"B21*0.21","v":0},{"$f":"C21*0.21","v":0}]
["NETTOTULOS",{"$f":"B21+B24+B25-B26-B27","v":0},{"$f":"C21+C24+C25-C26-C27","v":0},{"$f":"D21+D24+D25-D26-D27","v":0}]
[]
["Satunnaiset tuotot",0]
["Satunnaiset kulut",0]
["KOKONAISTULOS",{"$f":"B28+B30-B31","v":0},{"$f":"C28+C30-C31","v":0},0]

{"sheet":"Ekstrataulukko Laskutustarve","index":3,"n_rows":26,"n_cols":8,"rows_kept":26,"cut":false,"hidden":false,"merged":[]}
["HUOM! Tätä taulukkoa ei vaadita tutkinnon dokumentiksi. Laskentataulukko on "]
["suuntaa antava laskelma siitä, mikä on yrityksesi laskutustarve tai myynti per päivä, "]
["kun täytät siihen tekemäsi työpäivät ja tunnit. "]
["Täytä vain vihreällä merkityt ruudut. "]
[]
[]
[null,null,"vuodessa","kuukaudessa"]
[]
["Kiinteät kustannukset",null,{"$f":"Katelaskelmat!F68","v":0},{"$f":"C9/12","v":0}]
[]
["Kuinka monta työpäivää"]
["teet keskimäärin viikossa?",null,0,"päivää ",null,null,{"$f":"C12*52-C20-C23","v":0},"työpäivää vuodessa"]
[]
["Kuinka monta työtuntia per päivä?",null,0,"tuntia",null,null,{"$f":"C14*G12","v":0},"työtuntia vuodessa "]
[{"$nulls":7},"joista "]
["Kuinka monta prosenttia työtunneista"]
["on laskutettavia?",null,0,"prosenttia",null,null,{"$f":"G14*C17","v":0},"laskutettavaa työtuntia "]
[]
["Kuinka monta lomapäivää"]
["haluat pitää vuodessa?",null,0,"päivää"]
[]
["Kuinka monta muuta päivää"]
["pidät vapaata? Esim. sairaus tai muut syyt",null,0,"päivää "]
[]
[]
["Arvonlisäveroton laskutustarve per tunti",null,{"$f":"C9/G17","v":{"$error":"#DIV/0!"}}]